bitfinex/quotes_BTCUSD_20250711
["timestamp","ask_amount","ask_price","bid_price","bid_amount"]
[1752242572402,0.65684766,117840.0,117830.0,0.03631464]
[1752242572610,0.51920766,117840.0,117830.0,0.2386507]
[1752242572821,0.32529359,117840.0,117830.0,0.25562379]
[1752242573029,0.01797136,117840.0,117830.0,0.26411008]
[1752242573471,0.02645729,117840.0,117830.0,0.26411008]
[1752242573710,0.18883337,117840.0,117830.0,0.06590464]
[1752242573930,0.18883337,117840.0,117830.0,0.00220464]
[1752242574997,0.18983337,117840.0,117830.0,0.00220464]
[1752242575204,0.18983337,117840.0,117830.0,0.00521464]
[1752242575412,0.32425337,117840.0,117830.0,0.2056507]
[1752242575612,0.32425337,117840.0,117830.0,0.2445375]
[1752242575815,0.32625337,117840.0,117830.0,0.2445375]
[1752242576028,0.32625337,117840.0,117830.0,0.06631464]
[1752242576244,0.18020758,117840.0,117830.0,0.00521464]
[1752242576450,0.31990758,117840.0,117830.0,0.00521464]
[1752242577163,0.31790758,117840.0,117830.0,0.00220464]
[1752242577576,0.31890758,117840.0,117830.0,0.00220464]
[1752242578353,0.31890758,117840.0,117830.0,8.464e-05]
[1752242578562,1.16019471,117840.0,117830.0,8.464e-05]
[1752242578762,1.16341471,117840.0,117830.0,8.464e-05]
[1752242578972,1.31384464,117840.0,117830.0,8.464e-05]
[1752242579785,1.28208464,117840.0,117830.0,8.464e-05]
[1752242580363,1.31388464,117840.0,117830.0,8.464e-05]
[1752242580705,1.39931457,117840.0,117830.0,8.464e-05]
[1752242580909,1.24892464,117840.0,117830.0,8.464e-05]
[1752242581574,0.65894758,117840.0,117830.0,0.00220464]
[1752242581777,0.17920758,117840.0,117830.0,0.00309464]
[1752242581998,0.32537359,117840.0,117830.0,0.25350394]
[1752242582214,0.341,117840.0,117830.0,0.26199023]
[1752242582485,0.17162013,117850.0,117840.0,0.22577902]
[1752242582741,0.0254532,117860.0,117850.0,0.25856253]
[1752242582959,0.3328664,117860.0,117850.0,0.23611725]
[1752242583175,0.3328264,117860.0,117850.0,0.24460261]
[1752242583387,0.3328264,117860.0,117850.0,0.07489536]
[1752242583601,0.3328264,117860.0,117850.0,0.24460261]
[1752242583812,0.32434198,117860.0,117850.0,0.06641]
[1752242584018,0.32434198,117860.0,117850.0,0.25308775]
[1752242584234,0.32434198,117860.0,117850.0,0.27005782]
[1752242584454,0.32634198,117860.0,117850.0,0.06641]
[1752242585120,0.32634198,117860.0,117850.0,0.03571]
[1752242585543,0.32634198,117860.0,117850.0,0.20541725]
[1752242585666,0.01896877,117860.0,117850.0,0.26177231]
[1752242585877,0.34319032,117860.0,117850.0,0.26177239]
[1752242586119,0.34319011,117860.0,117850.0,0.2532876]
[1752242586323,0.33470605,117860.0,117850.0,0.24480246]
[1752242586622,0.18017742,117860.0,117850.0,0.06661]
[1752242586917,0.31773742,117860.0,117850.0,0.06661]
[1752242587682,0.002,117860.0,117850.0,0.85061086]
[1752242587880,0.02745305,117860.0,117850.0,0.47631761]
[1752242588081,0.02745297,117860.0,117850.0,0.35568753]
[1752242588288,0.20563046,117860.0,117850.0,0.34720268]
[1752242588542,0.20563046,117860.0,117850.0,0.35568761]
[1752242588797,0.02745297,117860.0,117850.0,0.36417246]
[1752242589015,0.01896848,117860.0,117850.0,0.36417246]
[1752242589219,0.01048413,117860.0,117850.0,0.36417246]
[1752242589631,0.01048406,117860.0,117850.0,0.36417246]
[1752242589831,0.01896827,117860.0,117850.0,0.36417246]
[1752242590042,0.20563018,117860.0,117850.0,0.35568761]
[1752242590437,0.32622191,117860.0,117850.0,0.00301]
[1752242590675,0.17819254,117850.0,117840.0,0.03491]
[1752242590884,0.17819254,117850.0,117840.0,0.29854766]
[1752242591115,0.01697007,117850.0,117840.0,0.34851931]
[1752242591322,0.01696964,117850.0,117840.0,0.35700488]
[1752242591501,0.03393985,117850.0,117840.0,0.35700488]
[1752242591703,0.2036476,117850.0,117840.0,0.34003352]
[1752242591914,0.19616267,117850.0,117840.0,0.34003352]
[1752242592243,0.16972165,117840.0,117830.0,0.24431743]
[1752242592450,0.1782073,117840.0,117830.0,0.25280408]
[1752242592701,0.16972165,117840.0,117830.0,0.25280408]
[1752242592913,0.01697151,117840.0,117830.0,0.26977703]
[1752242593119,0.02545752,117840.0,117830.0,0.27826332]
[1752242593329,0.20366525,117840.0,117830.0,0.26977703]
[1752242593502,0.01697151,117840.0,117830.0,0.26129066]
[1752242593740,0.01697108,117840.0,117830.0,0.27826346]
[1752242593950,0.016971,117840.0,117830.0,0.27826346]
[1752242594571,0.03394237,117840.0,117830.0,0.27826346]
[1752242594776,0.04242823,117840.0,117830.0,0.27826346]
[1752242594990,0.00848478,117850.0,117840.0,0.22597902]
[1752242595194,0.02545499,117850.0,117840.0,0.3540046]
[1752242595397,0.21213246,117850.0,117840.0,0.34551917]
[1752242595601,0.20364768,117850.0,117840.0,0.34551917]
[1752242595807,0.01696993,117850.0,117840.0,0.35400474]
[1752242596007,0.16969285,117860.0,117850.0,0.26714731]
[1752242596008,0.01696834,117860.0,117850.0,0.26714731]
[1752242596214,0.02545262,117860.0,117850.0,0.36106217]
[1752242596419,0.02545262,117860.0,117850.0,0.35568746]
[1752242596420,0.01696834,117860.0,117850.0,0.35568746]
[1752242596592,0.02545262,117860.0,117850.0,0.35568746]
[1752242596833,0.14800356,117870.0,117860.0,0.25834575]
[1752242597036,0.01896676,117870.0,117860.0,0.25834575]
[1752242597253,0.002,117870.0,117860.0,1.12321281]
[1752242597463,0.02745046,117870.0,117860.0,1.13775366]
[1752242597687,0.01896676,117870.0,117860.0,0.63646653]
[1752242597895,0.01896668,117870.0,117860.0,0.63646653]
[1752242598098,0.01048327,117870.0,117860.0,0.63646653]
[1752242598314,0.002,117870.0,117860.0,0.63646653]
[1752242600199,0.002,117870.0,117860.0,1.13775366]
[1752242600536,0.002,117870.0,117860.0,1.47775366]
[1752242600950,0.0209669,117870.0,117860.0,0.3614266]
[1752242601132,0.20761283,117870.0,117860.0,0.25297177]
[1752242601343,0.20761341,117870.0,117860.0,0.19825605]
[1752242601634,0.20561341,117870.0,117860.0,0.18977177]
[1752242601838,0.002,117870.0,117860.0,0.34778583]
[1752242602040,0.0189669,117870.0,117860.0,0.34778583]
[1752242602181,0.002,117870.0,117860.0,0.34778583]
[1752242602587,0.002,117870.0,117860.0,0.86361381]
[1752242603681,0.002,117870.0,117860.0,0.36232668]
[1752242603902,0.002,117870.0,117860.0,0.49984668]
[1752242604107,0.01048334,117870.0,117860.0,0.49984668]
[1752242604297,0.002,117870.0,117860.0,0.49984668]
[1752242604685,0.002,117870.0,117860.0,1.00113381]
[1752242605272,0.002,117870.0,117860.0,0.49984668]
[1752242606222,0.002,117870.0,117860.0,1.00113381]
[1752242608804,0.002,117870.0,117860.0,1.34113381]
[1752242611554,0.002,117890.0,117880.0,0.27145364]
[1752242611732,0.002,117890.0,117880.0,1.4730907]
[1752242611981,0.002,117910.0,117900.0,0.20962055]
[1752242612190,0.002,117910.0,117900.0,1.13395761]
[1752242612587,0.002,117910.0,117900.0,1.13706761]
[1752242612825,0.002,117910.0,117900.0,1.13715225]
[1752242613250,0.002,117910.0,117900.0,1.14553754]
[1752242614300,0.002,117910.0,117900.0,0.64425041]
[1752242614511,0.01048039,117910.0,117900.0,0.36094512]
[1752242614727,0.002,117910.0,117900.0,0.43572512]
[1752242615771,0.002,117910.0,117900.0,0.46702512]
[1752242616579,0.002,117910.0,117900.0,0.29824512]
[1752242616821,0.01048039,117910.0,117900.0,0.43568512]
[1752242617030,0.19706293,117910.0,117900.0,0.27817239]
[1752242617238,0.2055439,117910.0,117900.0,0.28907589]
[1752242617457,0.04440405,117910.0,117900.0,0.42651589]
[1752242617666,0.002,117910.0,117900.0,0.43499715]
[1752242617847,0.01048039,117910.0,117900.0,0.43499715]
[1752242618120,0.002,117910.0,117900.0,0.43810715]
[1752242618533,0.01048039,117910.0,117900.0,0.43810715]
[1752242619192,0.002,117910.0,117900.0,0.43810715]
[1752242619406,0.002,117910.0,117900.0,1.01513513]
[1752242619611,0.002,117910.0,117900.0,0.513848]
[1752242622301,0.002,117910.0,117900.0,1.01513513]
[1752242622511,0.002,117910.0,117900.0,0.87769513]
[1752242622737,0.002,117910.0,117900.0,0.482908]
[1752242623372,0.002,117910.0,117900.0,1.01479513]
[1752242624006,0.002,117910.0,117900.0,0.513508]
[1752242624633,0.002,117910.0,117900.0,0.315208]
[1752242624862,0.01896107,117910.0,117900.0,0.449498]
[1752242625062,0.01048046,117910.0,117900.0,0.449498]
[1752242625277,0.01896107,117910.0,117900.0,0.449498]
[1752242625485,0.002,117910.0,117900.0,0.449498]
[1752242625674,0.002,117910.0,117900.0,0.452568]
[1752242625850,0.002,117910.0,117900.0,1.01635513]
[1752242628240,0.002,117910.0,117900.0,0.515068]
[1752242628402,0.002,117910.0,117900.0,1.01635513]
[1752242630065,0.01048046,117910.0,117900.0,0.452568]
[1752242630276,0.20554382,117910.0,117900.0,0.40951316]
[1752242630476,0.20554368,117910.0,117900.0,0.41799456]
[1752242630697,0.01896107,117910.0,117900.0,0.42647589]
[1752242630877,0.002,117910.0,117900.0,0.43802715]
[1752242631855,0.002,117910.0,117900.0,1.01635513]
[1752242632060,0.002,117910.0,117900.0,0.82955113]
[1752242632263,0.018961,117910.0,117900.0,0.33367569]
[1752242632468,0.19706308,117910.0,117900.0,0.29369085]
[1752242632695,0.19706308,117910.0,117900.0,0.30217239]
[1752242632928,0.02744219,117910.0,117900.0,0.31065379]
[1752242633057,0.03592316,117910.0,117900.0,0.31913512]
[1752242633457,0.21402509,117910.0,117900.0,0.31913512]
[1752242633660,0.1885829,117910.0,117900.0,0.22291457]
[1752242633871,0.2547529,117910.0,117900.0,0.41799463]
[1752242634081,0.24627193,117910.0,117900.0,0.23139633]
[1752242634485,0.24627193,117910.0,117900.0,0.41799477]
[1752242634685,0.07665082,117910.0,117900.0,0.41799477]
[1752242634884,0.09361233,117910.0,117900.0,0.4349575]
[1752242635308,0.085131,117910.0,117900.0,0.4349575]
[1752242635497,0.002,117910.0,117900.0,0.4349575]
[1752242635714,0.01048046,117910.0,117900.0,0.4380275]
[1752242636072,0.002,117910.0,117900.0,0.4380275]
[1752242636308,0.002,117910.0,117900.0,0.93931463]
[1752242636513,0.002,117910.0,117900.0,0.98475548]
[1752242636629,0.002,117910.0,117900.0,0.95385548]
[1752242637038,0.01896129,117910.0,117900.0,0.4349575]
[1752242637240,0.25595254,117910.0,117900.0,0.40103161]
[1752242637528,0.25595254,117910.0,117900.0,0.41799492]
[1752242637661,0.25595254,117910.0,117900.0,0.42647646]
[1752242637869,0.09184262,117910.0,117900.0,0.43495779]
[1752242638075,0.05166165,117910.0,117900.0,0.43495729]
[1752242638276,0.002,117910.0,117900.0,0.43802729]
[1752242638493,0.01048046,117910.0,117900.0,0.43802729]
[1752242638688,0.002,117910.0,117900.0,0.43802729]
[1752242638906,0.002,117910.0,117900.0,0.98425527]
[1752242639480,0.002,117910.0,117900.0,1.01425527]
[1752242645380,0.002,117910.0,117900.0,0.51296814]
[1752242645617,0.002,117910.0,117900.0,1.01425527]
[1752242646882,0.002,117910.0,117900.0,0.45256814]
[1752242647087,0.002,117910.0,117900.0,0.43802729]
[1752242647492,0.002,117910.0,117900.0,0.45256814]
[1752242648074,0.002,117910.0,117900.0,0.44949814]
[1752242648270,0.26363301,117910.0,117900.0,0.25514985]
[1752242648504,0.26363301,117910.0,117900.0,0.26363154]
[1752242648682,0.26363301,117910.0,117900.0,0.28907581]
[1752242648935,0.27211398,117910.0,117900.0,0.28907581]
[1752242649143,0.27211398,117910.0,117900.0,0.28907595]
[1752242649354,0.28059502,117910.0,117900.0,0.28907588]
[1752242649541,0.27211448,117910.0,117900.0,0.27211308]
[1752242649783,0.27211448,117910.0,117900.0,0.28059455]
[1752242649984,0.27211448,117910.0,117900.0,0.28907595]
[1752242650108,0.27211448,117910.0,117900.0,0.28059455]
[1752242650322,0.2636338,117910.0,117900.0,0.26363154]
[1752242650519,0.2551529,117910.0,117900.0,0.27211323]
[1752242650964,0.2551529,117910.0,117900.0,8.464e-05]
[1752242650965,0.23819089,117910.0,117900.0,8.464e-05]
[1752242652122,0.87671802,117910.0,117900.0,8.464e-05]
[1752242652298,0.73947802,117910.0,117900.0,8.464e-05]
[1752242652505,0.87671802,117910.0,117900.0,8.464e-05]
[1752242653133,0.37543089,117910.0,117900.0,8.464e-05]
[1752242653575,0.0656,117910.0,117900.0,0.19516463]
[1752242653792,0.21888247,117910.0,117900.0,0.19516463]
[1752242653999,0.22736293,117910.0,117900.0,0.19516463]
[1752242654203,0.04926114,117910.0,117900.0,0.20364589]
[1752242654355,0.03592301,117910.0,117900.0,0.20364589]
[1752242654554,0.2055439,117910.0,117900.0,0.19516477]
[1752242654755,0.25856344,117910.0,117900.0,0.19516477]
[1752242655141,0.24558186,117910.0,117900.0,8.464e-05]
[1752242655954,0.38282186,117910.0,117900.0,8.464e-05]
[1752242656491,0.41298075,117910.0,117900.0,0.19516427]
[1752242656647,0.59956315,117910.0,117900.0,0.16971992]
[1752242656851,0.60254315,117910.0,117900.0,0.17820168]
[1752242657107,0.343,117910.0,117900.0,0.2036461]
[1752242657266,0.343,117910.0,117900.0,0.29214603]
[1752242657466,0.35148039,117910.0,117900.0,0.29214603]
[1752242657777,0.35148054,117910.0,117900.0,0.29214603]
[1752242658005,0.343,117910.0,117900.0,0.29214603]
[1752242658240,0.002,117910.0,117900.0,0.29214603]
[1752242659226,0.01048039,117910.0,117900.0,0.29214603]
[1752242659432,0.002,117910.0,117900.0,0.29214603]
[1752242660446,0.002,117910.0,117900.0,0.87137401]
[1752242660852,0.002,117910.0,117900.0,0.37008688]
[1752242661227,0.002,117910.0,117900.0,0.87137401]
[1752242662189,0.002,117910.0,117900.0,0.37008688]
[1752242662390,0.002,117910.0,117900.0,0.87137401]
[1752242668027,0.002,117910.0,117900.0,0.37219688]
[1752242668278,0.002,117910.0,117900.0,0.33899688]
[1752242668561,0.002,117910.0,117900.0,0.29425603]
[1752242669049,0.002,117910.0,117900.0,0.29118603]
[1752242669050,0.03808258,117910.0,117900.0,0.29118603]
[1752242669276,0.053321,117910.0,117900.0,0.28907603]
[1752242669488,0.06180161,117910.0,117900.0,0.30361688]
[1752242669703,0.23142301,117910.0,117900.0,0.2721133]
[1752242669914,0.58728179,117910.0,117900.0,0.22263457]
[1752242670171,0.58728179,117910.0,117900.0,0.40923315]
[1752242670660,0.58728179,117910.0,117900.0,0.40075161]
[1752242670888,0.57880089,117910.0,117900.0,0.22263457]
[1752242671072,1.08008802,117910.0,117900.0,8.464e-05]
[1752242671941,1.21720802,117910.0,117900.0,8.464e-05]
[1752242673186,1.22572465,117910.0,117900.0,8.464e-05]
[1752242675586,1.22788465,117910.0,117900.0,8.464e-05]
[1752242676810,1.09076465,117910.0,117900.0,8.464e-05]
[1752242677019,1.22784465,117910.0,117900.0,8.464e-05]
[1752242677468,1.09076465,117910.0,117900.0,8.464e-05]
[1752242678301,0.58096089,117910.0,117900.0,8.464e-05]
[1752242678715,0.57798089,117910.0,117900.0,0.19516484]
[1752242678955,0.71506089,117910.0,117900.0,0.19516484]
[1752242679358,0.56240194,117910.0,117900.0,0.20364624]
[1752242679602,0.00416,117910.0,117900.0,0.29966743]
[1752242679814,0.01264039,117910.0,117900.0,0.29966743]
[1752242679979,0.00416,117910.0,117900.0,0.29966743]
[1752242680181,0.002,117910.0,117900.0,1.07607456]
[1752242680337,0.002,117910.0,117900.0,1.15171541]
[1752242680544,0.1,117930.0,117920.0,0.19504661]
[1752242680745,0.1,117930.0,117920.0,0.55463654]
[1752242680947,0.1,117930.0,117920.0,0.55770654]
[1752242681199,0.1,117930.0,117920.0,1.10403452]
[1752242681413,0.1,117930.0,117920.0,1.14371109]
[1752242682237,0.1,117930.0,117920.0,0.64242396]
[1752242682852,0.1,117930.0,117920.0,0.63374739]
[1752242684842,0.101,117930.0,117920.0,0.63374739]
[1752242685050,0.101,117930.0,117920.0,1.13503452]
[1752242685460,0.101,117930.0,117920.0,1.14354819]
[1752242686067,0.101,117930.0,117920.0,0.64226106]
[1752242686274,0.101,117930.0,117920.0,1.14354819]
[1752242686698,0.101,117930.0,117920.0,1.13503452]
[1752242687555,0.101,117930.0,117920.0,1.14363838]
[1752242687755,0.1,117930.0,117920.0,1.14363838]
[1752242687959,1e-08,117930.0,117920.0,1.48573838]
[1752242688162,1e-08,117930.0,117920.0,1.48773838]
[1752242688363,0.002,117950.0,117940.0,0.27195439]
[1752242688565,0.002,117950.0,117940.0,0.99777145]
[1752242689017,0.002,117950.0,117940.0,1.00097145]
[1752242689296,0.002,117950.0,117940.0,0.46764432]
[1752242689505,0.002,117950.0,117940.0,0.30028432]
[1752242689713,0.02142407,117950.0,117940.0,0.29708432]
[1752242689912,0.34100701,117950.0,117940.0,0.40892523]
[1752242690124,0.1039035,117950.0,117940.0,0.42588221]
[1752242690486,0.11238159,117950.0,117940.0,0.42588221]
[1752242690687,0.1039035,117950.0,117940.0,0.42588221]
[1752242691105,0.00249868,117950.0,117940.0,0.42588221]
[1752242691301,0.00249868,117950.0,117940.0,0.44362306]
[1752242691501,0.01097627,117950.0,117940.0,0.44362306]
[1752242691704,0.0109762,117950.0,117940.0,0.44362306]
[1752242692203,0.20597298,117950.0,117940.0,0.26348649]
[1752242692461,0.27191298,117950.0,117940.0,0.41736361]
[1752242692822,0.27191298,117950.0,117940.0,0.40040649]
[1752242693025,0.25495787,117950.0,117940.0,0.40888516]
[1752242693479,0.23800205,117950.0,117940.0,0.08542993]
[1752242693653,0.23800205,117950.0,117930.0,0.32345814]
[1752242693654,0.16957775,117940.0,117930.0,0.31497883]
[1752242693892,0.16957775,117940.0,117930.0,0.408888]
[1752242693893,0.1809962,117940.0,117930.0,0.408888]
[1752242694030,0.2437962,117940.0,117930.0,0.3919293]
[1752242694224,0.23531775,117940.0,117930.0,0.16959213]
[1752242694655,0.01695712,117940.0,117930.0,0.20350967]
[1752242695016,0.01695719,117940.0,117930.0,0.28046]
[1752242695188,0.025436,117940.0,117930.0,0.28046]
[1752242695396,0.00847845,117940.0,117930.0,0.28046]
[1752242695832,0.02543571,117940.0,117930.0,0.28046]
[1752242696016,0.01695683,117940.0,117930.0,0.28046]
[1752242696259,0.00847824,117940.0,117930.0,0.2836595]
[1752242696765,0.00847824,117940.0,117930.0,0.2846595]
[1752242696969,0.0254355,117940.0,117930.0,0.2846595]
[1752242697147,0.01695655,117940.0,117930.0,0.2846595]
[1752242697349,0.00847824,117940.0,117930.0,0.2846595]
[1752242697530,0.02793188,117950.0,117940.0,0.17805656]
[1752242697723,0.20597341,117950.0,117940.0,0.4173239]
[1752242698117,0.20794341,117950.0,117940.0,0.4258025]
[1752242698324,0.19946589,117950.0,117940.0,0.4258025]
[1752242698529,0.02990238,117950.0,117940.0,0.43428088]
[1752242698787,0.01945393,117950.0,117940.0,0.43958088]
[1752242698979,0.21642143,117950.0,117940.0,0.43958088]
[1752242699157,0.21642143,117950.0,117940.0,0.43638088]
[1752242699365,0.02142393,117950.0,117940.0,0.43638088]
[1752242699567,0.02793181,117950.0,117940.0,0.43958088]
[1752242699774,0.21445129,117950.0,117940.0,0.4311025]
[1752242699974,0.19098816,117950.0,117940.0,0.40036656]
[1752242700203,0.25608816,117950.0,117940.0,0.41732411]
[1752242700582,0.21541021,117950.0,117940.0,0.22230993]
[1752242700930,0.21541021,117950.0,117920.0,0.20230651]
[1752242700931,0.18656622,117920.0,117910.0,0.17280809]
[1752242701062,0.25168247,117910.0,117900.0,0.18542993]
[1752242701258,0.8927496,117910.0,117900.0,0.1]
[1752242701885,1.2327496,117910.0,117900.0,0.1]
[1752242702309,0.7399803,117910.0,117900.0,0.1]
[1752242702513,0.7399803,117910.0,117900.0,0.10008464]
[1752242703161,1.24126743,117910.0,117900.0,0.10008464]
[1752242703361,0.7399803,117910.0,117900.0,0.10008464]
[1752242703996,0.59462247,117910.0,117900.0,0.26971992]
[1752242704166,0.55948247,117910.0,117900.0,0.10008464]
[1752242704364,1.2327496,117910.0,117900.0,0.10008464]
[1752242704797,1.24133003,117910.0,117900.0,0.10008464]
[1752242705194,1.32675996,117910.0,117900.0,0.10008464]
[1752242706879,1.33075996,117910.0,117900.0,0.10008464]
[1752242707732,1.33071996,117910.0,117900.0,0.10008464]
[1752242708974,1.19391996,117910.0,117900.0,0.10008464]
[1752242709171,0.7440029,117910.0,117900.0,0.10008464]
[1752242709827,0.56642247,117910.0,117900.0,0.10008464]
[1752242710034,0.70322247,117910.0,117900.0,0.10008464]
[1752242710239,0.69922247,117910.0,117900.0,0.10008464]
[1752242710447,0.70122247,117910.0,117900.0,0.10008464]
[1752242710652,1.2353096,117910.0,117900.0,0.10008464]
[1752242710855,0.73402247,117910.0,117900.0,0.10008464]
[1752242712090,0.59722247,117910.0,117900.0,0.10008464]
[1752242712294,0.66538247,117910.0,117900.0,0.10008464]
[1752242713012,0.52858247,117910.0,117900.0,0.10008464]
[1752242713212,0.66538247,117910.0,117900.0,0.10008464]
[1752242713652,1.1696896,117910.0,117900.0,0.10008464]
[1752242713871,0.69850247,117910.0,117900.0,0.10008464]
[1752242714301,0.72395247,117910.0,117900.0,0.10008464]
[1752242714913,0.55403247,117910.0,117900.0,0.27820154]
[1752242715120,0.68235179,117910.0,117900.0,0.26971992]
[1752242715319,0.68235179,117910.0,117900.0,0.28668322]
[1752242715529,0.52010179,117910.0,117900.0,0.28870322]
[1752242715734,0.65686179,117910.0,117900.0,0.28022168]
[1752242715972,0.65050089,117910.0,117900.0,0.10210464]
[1752242716149,0.65352089,117910.0,117900.0,0.10008464]
[1752242716538,0.65050089,117910.0,117900.0,0.10008464]
[1752242717514,1.21738802,117910.0,117900.0,0.10008464]
[1752242717724,1.30281795,117910.0,117900.0,0.10008464]
[1752242717868,1.30281795,117910.0,117900.0,0.09160458]
[1752242718288,0.58751412,117890.0,117880.0,0.002]
[1752242718495,1.31099118,117890.0,117880.0,0.00208465]
[1752242718706,1.31401118,117890.0,117880.0,0.00208465]
[1752242720800,1.33946818,117890.0,117880.0,0.00208465]
[1752242721070,1.42689811,117890.0,117880.0,0.00208465]
[1752242721328,1.34146818,117890.0,117880.0,0.00208465]
[1752242722026,0.74903291,117870.0,117860.0,0.002]
[1752242722268,0.88579291,117870.0,117860.0,0.00214935]
[1752242722492,1.31424284,117870.0,117860.0,0.00214935]
[1752242722981,1.33965928,117870.0,117860.0,0.00214935]
[1752242724413,0.72220222,117870.0,117860.0,0.00214935]
[1752242724615,0.68878222,117870.0,117860.0,0.00214935]
[1752242724828,0.66336578,117870.0,117860.0,0.1718422]
[1752242725059,0.1536869,117870.0,117860.0,0.20051525]
[1752242725293,0.34033297,117870.0,117860.0,0.19203112]
[1752242725547,0.34033297,117870.0,117860.0,0.20051568]
[1752242725919,0.32336607,117870.0,117860.0,0.20051568]
[1752242726146,0.31488237,117870.0,117860.0,0.20051568]
[1752242726363,0.31488237,117870.0,117860.0,0.00536935]
[1752242726563,0.30639845,117870.0,117860.0,0.00214935]
[1752242727421,0.87450558,117870.0,117860.0,0.00214935]
[1752242727633,0.90012816,117870.0,117860.0,0.00214935]
[1752242727854,1.18883809,117870.0,117860.0,0.00214935]
[1752242728048,1.32555809,117870.0,117860.0,0.00214935]
[1752242730035,1.18883809,117870.0,117860.0,0.00214935]
[1752242730195,1.32555809,117870.0,117860.0,0.00214935]
[1752242730604,1.35101809,117870.0,117860.0,0.00214935]
[1752242731212,1.21429809,117870.0,117860.0,0.00214935]
[1752242731411,1.35097809,117870.0,117860.0,0.00214935]
[1752242733150,1.43640802,117870.0,117860.0,0.00214935]
[1752242733755,0.18667746,117850.0,117840.0,0.002]
[1752242733966,0.88694459,117850.0,117840.0,0.00214938]
[1752242734169,0.88996459,117850.0,117840.0,0.00214938]
[1752242734374,0.35767746,117850.0,117840.0,0.00214938]
[1752242734579,0.32335746,117850.0,117840.0,0.00536938]
[1752242734821,0.32335746,117850.0,117840.0,0.03666938]
[1752242734994,0.32335746,117850.0,117840.0,0.20639103]
[1752242735180,0.17819012,117860.0,117850.0,0.20100725]
[1752242735380,0.54364316,117860.0,117850.0,0.24341261]
[1752242735585,0.2036223,117870.0,117860.0,0.16969285]
[1752242735797,0.02546,117870.0,117860.0,0.85556724]
[1752242736004,0.33180536,117880.0,117870.0,0.18664593]
[1752242736203,0.15364546,117880.0,117870.0,0.34687942]
[1752242737480,0.16412614,117890.0,117880.0,0.27021599]
[1752242737686,0.02744607,117890.0,117880.0,0.27021599]
[1752242737927,0.18861355,117890.0,117880.0,0.2617333]
[1752242738129,0.01896388,117890.0,117880.0,0.27021599]
[1752242738335,0.01048198,117890.0,117880.0,0.35564592]
[1752242738536,0.0104819,117890.0,117880.0,0.3557953]
[1752242738745,0.002,117890.0,117880.0,0.85708243]
[1752242739591,0.002,117890.0,117880.0,0.86558653]
[1752242739802,0.002,117910.0,117900.0,0.2584797]
[1752242740014,0.002,117910.0,117900.0,1.11847676]
[1752242740236,0.002,117910.0,117900.0,1.12169676]
[1752242740797,0.002,117910.0,117900.0,0.62040963]
[1752242742985,0.002,117910.0,117900.0,1.12169676]
[1752242743583,0.002,117910.0,117900.0,1.13623761]
[1752242745462,0.002,117910.0,117900.0,0.86295761]
[1752242745667,0.002,117910.0,117900.0,0.49823048]
[1752242745785,0.002,117910.0,117900.0,0.36167048]
[1752242745990,0.002,117910.0,117900.0,0.47520837]
[1752242746198,0.002,117910.0,117900.0,0.48368963]
[1752242747111,0.002,117910.0,117900.0,0.98497676]
[1752242747507,0.002,117910.0,117900.0,0.48368963]
[1752242748259,0.002,117910.0,117900.0,0.99951761]
[1752242749373,0.002,117910.0,117900.0,0.49823048]
[1752242749572,0.002,117910.0,117900.0,0.99951761]
[1752242749772,0.002,117910.0,117900.0,0.49823048]
[1752242751468,0.018961,117910.0,117900.0,0.45344963]
[1752242751670,0.20554361,117910.0,117900.0,0.40854837]
[1752242751884,0.02744175,117910.0,117900.0,0.41999963]
[1752242752209,0.002,117910.0,117900.0,0.41999963]
[1752242752336,0.01048039,117910.0,117900.0,0.48179963]
[1752242752536,0.02744175,117910.0,117900.0,0.45079963]
[1752242752738,0.01048039,117910.0,117900.0,0.45079963]
[1752242752956,0.002,117910.0,117900.0,0.45079963]
[1752242753152,0.002,117910.0,117900.0,0.98448676]
[1752242753794,0.002,117910.0,117900.0,0.48319963]
[1752242755075,0.002,117910.0,117900.0,0.98448676]
[1752242755686,0.002,117910.0,117900.0,0.34667963]
[1752242755884,0.2055439,117910.0,117900.0,0.08839993]
[1752242756103,0.19706336,117910.0,117900.0,0.39447521]
[1752242756324,0.002,117910.0,117900.0,0.41991956]
[1752242756530,0.002,117910.0,117900.0,0.48581956]
[1752242757132,0.002,117910.0,117900.0,0.98710669]
[1752242757345,0.002,117910.0,117900.0,1.00164754]
[1752242758531,1e-08,117910.0,117900.0,1.84293467]
[1752242758699,0.1,117930.0,117920.0,0.61208746]
[1752242758937,0.1,117930.0,117920.0,1.47164452]
[1752242759065,0.1,117930.0,117920.0,1.47461452]
[1752242759264,0.1,117930.0,117920.0,1.50004852]
[1752242759857,0.1,117930.0,117920.0,1.5001979]
[1752242760070,0.1,117930.0,117920.0,1.5021979]
[1752242760271,0.1,117930.0,117920.0,1.00091077]
[1752242760490,0.1,117930.0,117920.0,1.5021979]
[1752242761302,0.002,117950.0,117940.0,0.77404152]
[1752242761505,0.002,117950.0,117940.0,1.13227145]
[1752242761700,0.002,117950.0,117940.0,1.13524145]
[1752242761903,0.002,117950.0,117940.0,1.47524145]
[1752242762716,0.0002,117960.0,117950.0,0.20953785]
[1752242762920,0.0002,117960.0,117950.0,0.87081344]
[1752242764030,0.0002,117960.0,117950.0,0.87281344]
[1752242764459,0.0002,117960.0,117950.0,0.89553844]
[1752242764819,0.002,117970.0,117960.0,0.77340844]
[1752242765024,0.002,117970.0,117960.0,1.13448837]
[1752242766114,0.00249888,117970.0,117960.0,1.13125685]
[1752242766340,0.00349888,117970.0,117960.0,1.13125685]
[1752242767199,0.00249888,117970.0,117960.0,1.13125685]
[1752242767948,0.00249888,117970.0,117960.0,1.47125685]
[1752242768367,0.02272503,117980.0,117960.0,1.47125685]
[1752242768368,0.02272503,117980.0,117970.0,0.27270478]
[1752242768572,0.02272503,117980.0,117970.0,1.20254122]
[1752242769043,0.0022,117990.0,117980.0,0.27208827]
[1752242769264,0.0022,117990.0,117980.0,1.13437533]
[1752242769496,0.0022,117990.0,117980.0,0.41962735]
[1752242769702,0.09342501,117990.0,117980.0,0.08542993]
[1752242769912,0.25445611,117990.0,117980.0,0.39123018]
[1752242770126,0.25445611,117990.0,117980.0,0.40818198]
[1752242770351,0.0022,117990.0,117980.0,0.42513321]
[1752242770560,0.0022,117990.0,117980.0,0.92939034]
[1752242770773,0.0022,117990.0,117980.0,0.84095119]
[1752242770977,0.0022,117990.0,117980.0,1.00973119]
[1752242772031,0.0002,118000.0,117990.0,0.77375888]
[1752242772231,0.0002,118000.0,117990.0,0.85918881]
[1752242772447,0.0002,118000.0,117990.0,0.86215881]
[1752242773061,0.0022,118010.0,117990.0,0.84520859]